Cogmind - Beta 10.2 @@@ ROGUE MODE // 2020.12.07 @ 17:39:37 Player: NinjaBub504 Result: Destroyed by as-87196 with Assembled Rifle Performance ------------- Evolutions (0) 0 Regions Visited (4) 800 Robots Destroyed (27) 135 Value Destroyed (423) 423 Prototype IDs (2) 40 Alien Tech Used (0) 0 Bonus (0) 0 TOTAL SCORE: 1398 Bonus ------- None Cogmind --------- Core Integrity 0/250 Matter 233/300 Energy 100/100 System Corruption 2% Temperature Cool (26) Movement Core (50) Location -9/Mines Parts ------- > --- POWER (1) -------- (None) > --- PROPULSION (2) --- (None) > --- UTILITY (2) ------ Core Shielding > --- WEAPON (2) ------- (None) > --- INVENTORY (4) ---- Thermal Converter Core Shielding Peak State ------------ > --- POWER ------------ Nuclear Core > --- PROPULSION ------- Improved Aluminum Leg Improved Aluminum Leg > --- UTILITY ---------- Thermal Converter Core Shielding > --- WEAPON ----------- Assault Rifle Assault Rifle > --- INVENTORY -------- Core Shielding Grenade Launcher Rocket Launcher [Rating: 13] Favorites ----------- Power Ion Engine Engine Ion Engine Power Core Nuclear Core Propulsion Improved Aluminum Leg Leg Improved Aluminum Leg Wheel Wheel Utility Core Shielding Device Heat Sink Storage Small Storage Unit Protection Core Shielding Weapon Assault Rifle Energy Gun EM Pulse Gun Ballistic Gun Assault Rifle Launcher Rocket Launcher Build | -11 -10 -10 -10 -9 ------- Run | Scr Mat Min Exi Min Slots Evolved . | . . . . . Power . | . . . . . Propulsion . | . . . . . Utility . | . . . . . Weapon . | . . . . . Parts Attached 24 | 6 13 3 1 1 Power 3 | 1 1 1 . . Engine 2 | 1 1 . . . Core 1 | . . 1 . . Reactor . | . . . . . Propulsion 7 | 2 5 . . . Treads . | . . . . . Leg 2 | . 2 . . . Wheel 5 | 2 3 . . . Hover . | . . . . . Flight . | . . . . . Utility 8 | 1 5 1 1 . Device 4 | . 3 1 . . Storage 2 | 1 . . 1 . Processor . | . . . . . Hackware . | . . . . . Protection 2 | . 2 . . . Artifact . | . . . . . Weapon 6 | 2 2 1 . 1 Energy Gun 3 | 1 2 . . . Energy Cannon . | . . . . . Ballistic Gun 2 | 1 . 1 . . Ballistic Cannon . | . . . . . Launcher 1 | . . . . 1 Special Weapon . | . . . . . Impact Weapon . | . . . . . Slashing Weapon . | . . . . . Piercing Weapon . | . . . . . Special Melee Weapon . | . . . . . Unidentified Prototypes . | . . . . . Parts Lost 9 | . 1 1 . 7 Power 1 | . . . . 1 Propulsion 2 | . . . . 2 Utility 1 | . . . . 1 Weapon 5 | . 1 1 . 3 Highest Loss Streak 7 | . 1 1 . 7 Average Slot Usage (%) 97 | . 96 98 100 85 Engine 9 | . 14 9 . . Core 4 | . . 4 14 14 Leg 17 | . 9 28 28 18 Wheel 10 | . 18 . . . Device 9 | . 11 14 5 . Storage 6 | . 6 . 8 14 Protection 10 | . 7 14 14 14 Energy Gun 8 | . 14 3 . . Ballistic Gun 19 | . 14 22 28 18 Naked Turns . | . . . . . Heaviest Build 18 | 12 14 14 16 18 Greatest Support 26 | 26 26 26 26 26 Greatest Overweight (x) 1 | . . . . 1 Average Overweight (x) . | . . . . . Largest Inventory Capacity 6 | 6 6 4 4 4 Average Capacity 4 | 4 4 4 4 4 Most Carried 4 | 2 4 4 3 3 Average Carried 2 | . 1 2 2 2 Final Capacity 6 | 6 4 4 4 4 Final Carried 3 | . 2 2 3 2 Class Distribution -------------------- 100% | Mutant Dominant Class ---------------- Mutant | -10/Materials Mutant | -10/Mines Mutant | -10/Exiles Mutant | -9/Mines Resources | -11 -10 -10 -10 -9 ----------- Run | Scr Mat Min Exi Min Matter Collected 626 | 191 379 56 . . Remotely . | . . . . . Salvage Created 810 | . 626 139 . 45 Parts 64 | . 55 7 . 2 Haulers Intercepted 1 | . 1 . . . Recyclers Shooed 2 | . 2 . . . Parts Field Recycled . | . . . . . Retrieved Matter . | . . . . . Parts Self-Destructed . | . . . . . Prevented . | . . . . . Kills | -11 -10 -10 -10 -9 ------- Run | Scr Mat Min Exi Min Combat Hostiles Destroyed 22 | . 11 3 . 8 Guns 14 | . 11 3 . . AOE 8 | . . . . 8 Classes Destroyed 10 | . 8 . . 2 Worker 5 | . 4 1 . . Builder 2 | . 2 . . . Tunneler 1 | . . . . 1 Hauler 1 | . 1 . . . Recycler 1 | . 1 . . . Operator 1 | . 1 . . . Watcher 2 | . 2 . . . Swarmer 6 | . 5 1 . . Grunt 8 | . 6 2 . . Assembled 8 | . . . . 8 Best Kill Streak 9 | . 5 2 . 9 Combat Bots Only 8 | . 3 2 . 8 Max Kills in Single Turn 5 | . 1 1 . 5 Gunslinging . | . . . . . Exploded 5 | . . . . 5 Melee . | . . . . . Uniques/NPCs Destroyed . | . . . . . Combat | -11 -10 -10 -10 -9 -------- Run | Scr Mat Min Exi Min Damage Taken 1159 | . 361 155 . 643 Core 257 | . 113 15 . 129 Absorbed by Shields 62 | . 4 58 . . Core Remaining (%) 100 | 100 . . . . Volleys Fired 103 | . 77 19 . 7 Largest 2 | . 2 2 . 2 Hottest 70 | . 70 60 . 40 Shots Fired 151 | . 115 26 . 10 Gun 147 | . 115 26 . 6 Cannon . | . . . . . Launcher 4 | . . . . 4 Special . | . . . . . Kinetic 87 | . 64 17 . 6 Thermal 44 | . 44 . . . Explosive 4 | . . . . 4 Electromagnetic 16 | . 7 9 . . Robot Hit Streak 9 | . 6 9 . 3 Robot Miss Streak 6 | . 6 4 . 4 Penetration Max . | . . . . . Secondary Targets 3 | . 3 . . . Max Gunslinging Chain 1 | . 1 . . . Shots Hit Robots 83 | . 61 18 . 4 Core Hits 61 | . 36 7 . 18 Critical Hits . | . . . . . Critical Kills . | . . . . . Critical Parts Destroyed . | . . . . . Melee Attacks . | . . . . . Impact . | . . . . . Slashing . | . . . . . Piercing . | . . . . . Sneak Attacks . | . . . . . Combat Hostiles . | . . . . . Follow-up Attacks . | . . . . . Damage Inflicted 1846 | . 752 239 . 855 Guns 1018 | . 740 239 . 39 Cannons . | . . . . . Explosions 816 | . . . . 816 Melee . | . . . . . Ramming 12 | . 12 . . . Kinetic 546 | . 376 131 . 39 Thermal 311 | . 311 . . . Explosive 816 | . . . . 816 Electromagnetic 161 | . 53 108 . . Impact . | . . . . . Slashing . | . . . . . Piercing . | . . . . . Highest Corruption 2 | . 1 1 1 2 Average Corruption 1 | . 1 1 1 1 Corruption Purged . | . . . . . Effects 7 | . 4 . 3 . Message Errors 1 | . 1 . . . Energy Discharges 4 | . 1 . 3 . Data Loss (minor) 2 | . 2 . . . Overload Shots . | . . . . . Overflow Damage 86 | . . . . 86 Projectiles . | . . . . . Explosions 86 | . . . . 86 Melee . | . . . . . Knockbacks . | . . . . . Impact . | . . . . . Kinetic . | . . . . . Secondary . | . . . . . Self-Inflicted Damage 91 | . 5 . . 86 Shots 2 | . . . . 2 Rammed 3 | . 3 . . . Targets Rammed 3 | . 3 . . . Kicked . | . . . . . Crushed . | . . . . . Highest Temperature 87 | . 87 44 . 45 Average Temperature 28 | . 30 26 . 26 Received Heat Transfer 406 | . 186 80 . 140 Siege Activations . | . . . . . Robots Corrupted . | . . . . . Combat Hostiles . | . . . . . Parts Fried . | . . . . . Impact Corruptions . | . . . . . Robots Melted . | . . . . . Combat Hostiles . | . . . . . Parts Melted 1 | . 1 . . . Heat Transferred 925 | . 925 . . . Parts Sabotaged . | . . . . . Parts Stolen . | . . . . . Parts Stripped . | . . . . . Power Chain Reactions . | . . . . . Missiles Intercepted . | . . . . . Alert | -11 -10 -10 -10 -9 ------- Run | Scr Mat Min Exi Min Peak Influence 285 | . 285 106 . . Initial 26 | . . 26 . . Average 104 | . 118 81 . . Maximum Alert Level 1 | . 1 . . . Low Security (%) 92 | 100 90 100 . 100 Level 1 7 | . 9 . . . Level 2 . | . . . . . Level 3 . | . . . . . Level 4 . | . . . . . Level 5 . | . . . . . High Security . | . . . . . Max Security . | . . . . . Squads Dispatched 7 | . 6 1 . . Investigation 5 | . 4 1 . . Extermination . | . . . . . Reinforcement 2 | . 2 . . . Assault . | . . . . . Garrison . | . . . . . Intercept . | . . . . . Construction Impeded . | . . . . . Haulers Reinforced . | . . . . . Stealth | -11 -10 -10 -10 -9 --------- Run | Scr Mat Min Exi Min Distress Signals 1 | . 1 . . . Communications Jammed . | . . . . . Distress Signals . | . . . . . Times Spotted 40 | . 17 5 . 18 Peak Tracking Total 16 | . 5 3 . 16 Tactical Retreats 1 | . 1 . . . Traps | -11 -10 -10 -10 -9 ------- Run | Scr Mat Min Exi Min Traps Triggered . | . . . . . Indirectly . | . . . . . Trap Hack Attempts . | . . . . . Triggered . | . . . . . Disarmed . | . . . . . Reprogrammed . | . . . . . Reused . | . . . . . Traps Extracted . | . . . . . Installed . | . . . . . Triggered . | . . . . . Machines | -11 -10 -10 -10 -9 ---------- Run | Scr Mat Min Exi Min Machines Disabled . | . . . . . Max in Single Turn . | . . . . . Machines Sabotaged . | . . . . . Garrisons Compromised . | . . . . . Overloaded Fab Kills . | . . . . . Fab Network Shutdowns . | . . . . . Hacking | -11 -10 -10 -10 -9 --------- Run | Scr Mat Min Exi Min Machines Accessed 9 | . 7 1 1 . Terminals 6 | . 6 . . . Fabricators . | . . . . . Repair Stations . | . . . . . Recycling Units 1 | . 1 . . . Scanalyzers . | . . . . . Garrison Access . | . . . . . Total Hacks 54 | . 30 1 23 . Successful 45 | . 21 1 23 . Failed 9 | . 9 . . . Catastrophic 1 | . 1 . . . Database Lockouts . | . . . . . Manual 2 | . 2 . . . Terminals 27 | . 27 . . . Fabricators . | . . . . . Repair Stations . | . . . . . Recycling Units 3 | . 3 . . . Scanalyzers . | . . . . . Garrison Access . | . . . . . Terminal Hacks 43 | . 19 1 23 . Record 33 | . 10 . 23 . Prototype ID Bank 1 | . 1 . . . Open Door 1 | . . 1 . . Alert Level 3 | . 3 . . . Unreport Threat 1 | . 1 . . . Locate Traps 1 | . 1 . . . Security Status 1 | . 1 . . . Reinforcement Status 1 | . 1 . . . Zone Layout 1 | . 1 . . . Fabricator Hacks . | . . . . . Repair Station Hacks . | . . . . . Recycling Unit Hacks 2 | . 2 . . . Recycle Component 1 | . 1 . . . Process 1 | . 1 . . . Scanalyzer . | . . . . . Garrison Access Hacks . | . . . . . Unauthorized Hacks . | . . . . . Terminals . | . . . . . Fabricators . | . . . . . Repair Stations . | . . . . . Recycling Units . | . . . . . Scanalyzers . | . . . . . Garrison Access . | . . . . . Data Cores Recovered . | . . . . . Used . | . . . . . Hacking Detections 7 | . 7 . . . Full Trace Events 7 | . 7 . . . Feedback Events 1 | . 1 . . . Corruption 1 | . 1 . . . Feedback Blocked . | . . . . . Robot Schematics Acquired . | . . . . . Robots Built . | . . . . . Matter . | . . . . . Time . | . . . . . Total Robot Build Rating . | . . . . . Part Schematics Acquired . | . . . . . Parts Built . | . . . . . Matter . | . . . . . Time . | . . . . . Total Part Build Rating . | . . . . . Parts Repaired . | . . . . . Time . | . . . . . Parts Recycled 1 | . 1 . . . Recycled Matter 207 | . 207 . . . Retrieved Matter . | . . . . . Retrieved Components . | . . . . . Parts Scanalyzed . | . . . . . Part Schematics Acquired . | . . . . . Parts Damaged . | . . . . . Bothacking | -11 -10 -10 -10 -9 ------------ Run | Scr Mat Min Exi Min Used RIF Installer . | . . . . . Robots Hacked . | . . . . . Non-combat . | . . . . . Combat . | . . . . . Robot Hacks Applied . | . . . . . Relay Couplers Released . | . . . . . Robots Rewired . | . . . . . Allies Hacked . | . . . . . Hacks Repelled . | . . . . . Allies | -11 -10 -10 -10 -9 -------- Run | Scr Mat Min Exi Min Total Allies . | . . . . . Largest Group . | . . . . . Highest-Rated Group . | . . . . . Highest-Rated Ally . | . . . . . Total Orders . | . . . . . Ally Attacks . | . . . . . Total Damage . | . . . . . Kills . | . . . . . Allies Corrupted . | . . . . . Allies Melted . | . . . . . Intel | -11 -10 -10 -10 -9 ------- Run | Scr Mat Min Exi Min Robot Analysis Total . | . . . . . Derelict Logs Recovered 1 | . . 1 . . Drone Launches . | . . . . . Drone Recoveries . | . . . . . Exploration | -11 -10 -10 -10 -9 ------------- Run | Scr Mat Min Exi Min Turns Passed 2012 | 53 1082 291 555 31 Spaces Moved 1581 | 46 881 182 461 11 Core 2 | 2 . . . . Treads . | . . . . . Legs 944 | . 290 182 461 11 Wheels 635 | 44 591 . . . Hover . | . . . . . Flight . | . . . . . Fastest Speed 50 | 50 80 120 120 120 Average Speed 104 | 89 94 120 120 122 Slowest Speed 150 | 100 120 120 120 150 Overloaded Moves . | . . . . . Propulsion Burnouts . | . . . . . Robots Hopped . | . . . . . Cave-ins Triggered . | . . . . . Exploration Rate (%) 45 | 4 91 48 78 8 Regions Visited 4 Branch Regions 3 Pre-discovered Areas 2 | . . 1 1 . Known Exits Taken . | . . . . . Unknown Exits Taken 4 | 1 1 1 1 . Scrap Searched 1 | . . 1 . . Spaces Dug . | . . . . . Terrain Destroyed 37 | . . . . 37 Melee . | . . . . . Projectile . | . . . . . AOE 37 | . . . . 37 Terrain Rammed . | . . . . . Walls Destroyed . | . . . . . Machines Disabled . | . . . . . Actions | -11 -10 -10 -10 -9 --------- Run | Scr Mat Min Exi Min Total 1785 | 57 1016 230 463 19 Wait 37 | . 17 20 . . Move 1577 | 45 880 181 460 11 Hop . | . . . . . Pick Up 26 | 6 15 4 1 . Fast Attach . | . . . . . Attach 15 | 6 4 3 1 1 Detach 2 | . 1 . 1 . Swap 9 | . 9 . . . Drop 13 | . 10 3 . . Fire 103 | . 77 19 . 7 Melee . | . . . . . Ram 2 | . 2 . . . Kick 1 | . 1 . . . Crush . | . . . . . Escape Stasis . | . . . . . Rewire . | . . . . . Trap . | . . . . . Miscellaneous . | . . . . . Route ------- -11/Scrapyard -10/Materials (discovered 4 exits: [*Mat x3] / *Min) -10/Mines -10/Exiles (discovered 2 exits: [*Min x2]) -9/Mines History --------- Turn | Location | Event 6 | -11/Scrapyard | Discovered new exit (range 16) 54 | -11/Scrapyard | Entered Materials 193 | -10/Materials | Discovered new exit (range 16) 217 | -10/Materials | Discovered new exit (range 14) 251 | -10/Materials | Discovered new exit (range 16) 307 | -10/Materials | Build established: Mutant 796 | -10/Materials | Discovered new exit (range 13) 1136 | -10/Materials | Entered Mines 1192 | -10/Mines | Core integrity fell below 50% 1265 | -10/Mines | Received a Rocket Launcher from a helpful Derelict 1291 | -10/Mines | Learned location of Zion (-7) 1312 | -10/Mines | Met a Derelict shopkeep closing up shop 1422 | -10/Mines | Deemed a non-threat by the Exiles lab entrance 1422 | -10/Mines | Discovered new exit (range 5) 1427 | -10/Mines | Entered Exiles 1447 | -10/Exiles | Discovered new exit (range 15) 1461 | -10/Exiles | Met 8R-AWN 1480 | -10/Exiles | Met EX-HEX 1528 | -10/Exiles | Met EX-DEC 1616 | -10/Exiles | Discovered new exit (range 14) 1737 | -10/Exiles | Visited The Gauntlet 1982 | -10/Exiles | Entered Mines 1983 | -9/Mines | Assembled infested the area 1985 | -9/Mines | Met a Derelict bent on vengeance 2012 | -9/Mines | Core integrity fell below 20% 2013 | -9/Mines | Destroyed by as-87196 with Assembled Rifle Last Messages --------------- displayed by Steam are all significantly underreported, in some cases by a huge margin, due to how they are calculated by Valve. as-09279 destroyed. as-25301 destroyed. as-43659 destroyed. as-88716 destroyed. as-30539 destroyed. [Achievement: Quick And Dirty] Imp. Aluminum Leg destroyed. as-28052 destroyed. Destroyed Asb. Blade. T-07 Excavator destroyed. Rocket Launcher destroyed. Destroyed Rocket Launcher. Nuclear Core destroyed. Destroyed Nuclear Core. Hcp. Battery destroyed. Destroyed Hcp. Battery. Destroyed Mining Laser. Destroyed Asb. Hover Unit. Map ----- +----------------------------------------------------+ | ????????????????????????????????????????????????? | | ????????????????????????????????????????????????? | | ????????????????????????????????????????????????? | | ????????????????????????????????????????????????? | | ????????????????????????????????????????????????? | | ????????????????????????????????????????????????? | | ????????????????????????????????????????????????? | | ????????????????????????????????????????????????? | | ?????????????????????##??????#??????????????????? | | ?????????????????????# ????? #??????????????????? | | ?????????????????????# ???? #??????????????????? | | ?????????????????????# ??? #??????????????????? | | ?????????????????????# ??? #??????????????????? | | ?????????????????????# ??? #??????????????????? | | ?????????????????????# #?? #??????????????????? | | ?????????????????????# ?? #???????? ?????????? | | ???????????????????### ## #?????? ?????????? | | ??????????????????## # ##### ???????????? | | ?????????????????## ?????????????? | | ?????????????????# = a ????????????????? | | ????????????????## a a #??????????????????? | | ????????????????# a #???????????????????? | | ????????????????# a #???????????????????? | | ????????????????# % #???????????????????? | | ??????????????????## #???????????????????? | | ???????????????????# a@ #????????????????????? | | ???????????????????# % #???????????????????? | | ?????????????????# t #???????????????????? | | ?????????????????# #### ##???????????????????? | | ?????????????????#????# #????????????????????? | | ??????????????????????# ???????????????????? | | ??????????????????????## ??????????????????? | | ???????????????????????## #?????????????????? | | ????????????????????????## #?????????????????? | | ?????????????????????????? ?????????????????? | | ?????????????????????????? ????????????????? | | ??????????????????????????# ###???????????????? | | ???????????????????????????# ##?????????????????? | | ????????????????????????????##??????????????????? | | ????????????????????????????????????????????????? | | ????????????????????????????????????????????????? | | ????????????????????????????????????????????????? | | ????????????????????????????????????????????????? | | ????????????????????????????????????????????????? | | ????????????????????????????????????????????????? | | ????????????????????????????????????????????????? | | ????????????????????????????????????????????????? | | ????????????????????????????????????????????????? | | ????????????????????????????????????????????????? | | ????????????????????????????????????????????????? | +----------------------------------------------------+ Best States ------------- Heat Dissipation 35 Energy Generation 14 Energy Capacity 640 Matter Stores 300 Matter Capacity 300 Sight Range 16 Terrain Scan Density 10 Core Shielding 20 Thermal Conversion 30 Evasion (%) 44 Item Schematics ----------------- None Robot Schematics ------------------ None Fabricated ------------ Nothing Alien Tech Used ----------------- None Achievements -------------- Let's See Who's Tougher Quick And Dirty Tourist Challenges ------------ None Game ------ Seed MediumDynamicShielding Manual? 0 Play Time 00:34:00 Cumulative 2.7 hours Start 2020.12.07 @ 17:03:47 End 2020.12.07 @ 17:39:37 Sessions 1 Manual Loads 0 Difficulty Rogue Special Mode None Game No. 4 Rogue 4 Adventurer 0 Explorer 0 Win Type - Total 0 Types 0/0/0/0/0/0/0/0/0 Lore% 7 Gallery% 5 Achievement% 6 Wizard Run 0 Options --------- ASCII 0 Keyboard 0 Movement Mouse Keybinds 0 Fullscreen 2 Font 16/Terminus Map View 76x50 Tactical HUD 0 Map Filters NONE Filters NONE Steam 1 RUN: 75bf9bd8-8473-41da-97e1-0bc1c0d1e6bb